bitfinex/quotes_ETHUSD_20240902
["timestamp","ask_amount","ask_price","bid_price","bid_amount"]
[1725282941900,3.95946,2525.6,2525.4,5.25496544]
[1725282942226,3.95946,2525.6,2525.4,3.55]
[1725282945130,7.91851,2525.8,2525.4,3.55]
[1725282945378,3.95938,2525.7,2525.4,3.55]
[1725282945675,3.95938,2525.7,2525.5,0.77030944]
[1725282945830,3.95938,2525.7,2525.6,0.55]
[1725282946027,3.95923,2525.8,2525.6,0.55]
[1725282946028,7.91847,2525.8,2525.6,0.55]
[1725282946468,3.95929,2525.7,2525.6,0.55]
[1725282946982,3.95923,2525.8,2525.6,1.01924442]
[1725282949460,3.95923,2525.8,2525.6,4.01924442]
[1725282950766,3.95923,2525.8,2525.6,1.01924442]
[1725282957213,3.95929,2525.7,2525.6,0.55]
[1725282957509,3.95929,2525.7,2525.5,4.65859439]
[1725282957510,7.9189,2525.6,2525.5,3.0]
[1725282957728,3.95967,2525.5,2525.4,3.0]
[1725282958413,7.91934,2525.5,2525.4,3.0]
[1725282958597,7.91934,2525.5,2525.4,3.55]
[1725282959326,7.91934,2525.5,2525.4,3.0]
[1725282959655,3.96008,2525.2,2525.1,4.65859439]
[1725282959829,3.96008,2525.2,2525.0,4.65859439]
[1725282960003,3.96008,2525.2,2525.0,8.36083004]
[1725282960206,3.96008,2525.2,2525.1,1.65859439]
[1725282960404,7.91947,2525.5,2525.1,1.65859439]
[1725282960697,3.95971,2525.5,2525.3,1.66459857]
[1725282960903,3.95971,2525.5,2525.4,0.92452692]
[1725282961155,3.95971,2525.5,2525.4,3.92452692]
[1725282962541,3.95941,2525.7,2525.4,3.92452692]
[1725282962943,3.95941,2525.7,2525.4,5.58912549]
[1725282963103,3.95941,2525.7,2525.5,0.5668315]
[1725282963305,3.95914,2525.8,2525.6,0.55]
[1725282964401,3.95914,2525.8,2525.6,3.55]
[1725282964619,3.959,2525.9,2525.6,3.55]
[1725282964817,3.95875,2526.1,2525.7,0.57814301]
[1725282965047,3.95875,2526.1,2525.8,0.55]
[1725282965209,3.95892,2526.0,2525.8,0.55]
[1725282968056,3.95898,2525.9,2525.8,0.55]
[1725282972292,3.95898,2525.9,2525.8,1.12927416]
[1725282972599,7.91796,2525.9,2525.8,1.12927416]
[1725282972762,7.91796,2525.9,2525.8,0.55]
[1725282972966,7.91831,2525.8,2525.7,0.55]
[1725282973391,7.91831,2525.8,2525.6,3.0]
[1725282973392,7.9189,2525.6,2525.5,3.0]
[1725282974302,3.95976,2525.4,2525.3,4.66459857]
[1725282974703,3.95976,2525.4,2525.3,5.21459857]
[1725282975331,3.95976,2525.4,2525.3,2.21459857]
[1725282976104,7.91952,2525.4,2525.3,2.21459857]
[1725282976534,7.91952,2525.4,2525.3,0.55]
[1725282978948,5.72467242,2525.6,2525.2,0.55]
[1725282979249,7.91984,2525.3,2525.2,0.55]
[1725282982327,7.91984,2525.3,2525.2,1.04623426]
[1725282983131,7.91984,2525.3,2525.2,0.55]
[1725282983341,7.92016,2525.2,2525.1,4.66459857]
[1725282983553,7.92016,2525.2,2525.1,5.21459857]
[1725282983867,3.95992,2525.3,2525.2,2.3948]
[1725282984028,3.95992,2525.3,2525.2,5.9448]
[1725282984217,3.95989,2525.4,2525.2,7.38052625]
[1725282984554,3.95989,2525.4,2525.3,0.55]
[1725282984759,3.95989,2525.4,2525.3,3.55]
[1725282985164,3.95989,2525.4,2525.3,4.04624598]
[1725282985339,3.95989,2525.4,2525.3,5.11746101]
[1725282986567,3.95989,2525.4,2525.3,4.62121503]
[1725282986924,3.95989,2525.4,2525.3,5.11743803]
[1725282988651,3.95961,2525.5,2525.3,5.11743803]
[1725282988980,3.9594,2525.7,2525.4,0.91316608]
[1725282989182,3.95908,2525.9,2525.5,3.84766262]
[1725282989466,3.95908,2525.9,2525.6,7.86156465]
[1725282989671,3.95845,2526.3,2525.8,2.2838]
[1725282989826,3.95845,2526.3,2525.8,9.32208432]
[1725282990022,3.95851,2526.2,2525.9,0.55]
[1725282990257,3.95851,2526.2,2525.9,3.55]
[1725282990467,3.95869,2526.1,2525.9,4.77791568]
[1725282990969,3.95869,2526.1,2525.9,5.274014]
[1725282991330,3.95869,2526.1,2525.9,4.77791568]
[1725282999469,3.95856,2526.2,2525.9,4.77791568]
[1725282999668,3.95856,2526.2,2526.0,0.75578005]
[1725282999871,3.95856,2526.2,2526.1,0.55]
[1725283000380,3.95856,2526.2,2526.1,2.8558]
[1725283000706,3.95856,2526.2,2526.1,5.8558]
[1725283001405,3.95856,2526.2,2526.1,3.55]
[1725283001967,3.95856,2526.2,2526.1,0.55]
[1725283002170,3.95856,2526.2,2526.0,0.55]
[1725283003985,3.95867,2526.1,2526.0,0.55]
[1725283004211,7.91734,2526.1,2526.0,0.55]
[1725283004628,3.95867,2526.1,2525.8,0.55]
[1725283004927,3.95898,2525.9,2525.8,0.55]
[1725283005938,3.95884,2526.0,2525.8,0.55]
[1725283006089,3.95884,2526.0,2525.8,3.12756]
[1725283006432,3.95884,2526.0,2525.9,3.0]
[1725283006591,3.95884,2526.0,2525.9,3.55]
[1725283007521,7.91781,2526.0,2525.9,3.55]
[1725283011385,7.91781,2526.0,2525.9,0.55]
[1725283011591,3.95898,2525.9,2525.8,0.55]
[1725283012485,7.91804,2525.9,2525.8,0.55]
[1725283014100,7.91828,2525.8,2525.7,0.55]
[1725283014295,11.87742,2525.8,2525.7,0.55]
[1725283014623,7.91858,2525.7,2525.6,3.0]
[1725283015035,3.95961,2525.5,2525.4,3.0]
[1725283015739,3.95961,2525.5,2525.4,3.55]
[1725283017054,7.91922,2525.5,2525.4,3.55]
[1725283017656,7.91922,2525.5,2525.4,7.55]
[1725283020693,3.95961,2525.5,2525.4,10.5808]
[1725283025222,3.95961,2525.5,2525.4,7.55]
[1725283027843,7.91922,2525.5,2525.4,7.55]
[1725283029683,7.91922,2525.5,2525.4,3.55]
[1725283029839,7.91922,2525.5,2525.4,0.55]
[1725283030040,3.95976,2525.4,2525.3,0.55]
[1725283030242,7.9196,2525.4,2525.3,4.55]
[1725283030467,7.9196,2525.4,2525.3,7.55]
[1725283030883,7.9196,2525.4,2525.3,3.55]
[1725283031953,7.9196,2525.4,2525.3,0.55]
[1725283037654,10.2757,2525.4,2525.3,0.55]
[1725283038000,14.23554,2525.4,2525.3,0.55]
[1725283039982,7.91984,2525.3,2525.2,0.55]
[1725283046017,7.92046,2525.1,2525.0,3.0]
[1725283046189,7.92046,2525.1,2525.0,3.55]
[1725283046379,7.92046,2525.1,2525.0,0.55]
[1725283047982,7.92046,2525.1,2525.0,4.55]
[1725283048189,7.92046,2525.1,2525.0,7.55]
[1725283050003,7.92046,2525.1,2525.0,7.96699927]
[1725283050582,7.92046,2525.1,2525.0,3.55]
[1725283050791,3.9593,2525.7,2525.1,2.3587]
[1725283051086,3.95906,2525.9,2525.5,2.3136]
[1725283051315,3.95887,2526.0,2525.6,1.177326]
[1725283051830,3.95887,2526.0,2525.6,4.177326]
[1725283051992,3.95887,2526.0,2525.7,2.3136]
[1725283052326,3.95887,2526.0,2525.8,0.55]
[1725283052683,3.95887,2526.0,2525.8,3.55]
[1725283052882,7.91781,2526.0,2525.8,3.55]
[1725283053127,3.95887,2526.0,2525.8,3.55]
[1725283053486,3.95867,2526.1,2525.8,4.1990926]
[1725283053684,3.95862,2526.2,2525.8,4.1990926]
[1725283054084,3.95862,2526.2,2525.8,8.1990926]
[1725283054945,2.3432,2526.9,2526.2,2.3602]
[1725283055087,2.3432,2526.9,2526.3,4.82344942]
[1725283055088,3.95752,2526.9,2526.3,4.82344942]
[1725283055288,3.95735,2527.0,2526.5,2.3602]
[1725283055488,3.95735,2527.0,2526.6,0.55]
[1725283055720,3.95735,2527.0,2526.6,3.55]
[1725283056628,3.95742,2526.9,2526.6,3.55]
[1725283062125,3.95742,2526.9,2526.6,7.55]
[1725283064315,3.95742,2526.9,2526.6,8.936839]
[1725283065453,3.95733,2527.0,2526.6,8.936839]
[1725283065629,3.95749,2526.9,2526.6,7.55]
[1725283066646,3.95749,2526.9,2526.6,3.55]
[1725283067160,3.95773,2526.7,2526.6,3.55]
[1725283067394,3.95773,2526.7,2526.6,0.55]
[1725283067535,3.95773,2526.7,2526.4,0.55]
[1725283069577,3.95773,2526.7,2526.5,4.0]
[1725283069750,3.95773,2526.7,2526.6,3.55]
[1725283069955,3.95773,2526.7,2526.6,5.9011]
[1725283070865,3.95773,2526.7,2526.6,7.55]
[1725283074741,3.95773,2526.7,2526.6,3.55]
[1725283074942,3.95773,2526.7,2526.6,0.55]
[1725283077748,3.95773,2526.7,2526.6,4.55]
[1725283078084,3.95773,2526.7,2526.6,7.55]
[1725283080065,3.95773,2526.7,2526.6,3.55]
[1725283080262,3.95773,2526.7,2526.6,0.55]
[1725283081483,3.95773,2526.7,2526.6,4.55]
[1725283081745,3.95773,2526.7,2526.6,7.55]
[1725283082693,6.45533,2527.1,2526.6,7.55]
[1725283082694,3.95748,2526.9,2526.6,7.55]
[1725283082861,3.95748,2526.9,2526.7,3.0]
[1725283083044,3.95748,2526.9,2526.8,0.55]
[1725283084093,3.9574,2527.0,2526.8,0.55]
[1725283084300,3.9574,2527.0,2526.8,2.9129]
[1725283084449,3.95708,2527.2,2526.9,3.59129]
[1725283084655,3.95704,2527.2,2527.0,0.55]
[1725283084991,3.95712,2527.1,2527.0,0.55]
[1725283086800,3.95704,2527.2,2527.0,1.200419]
[1725283087532,3.95704,2527.2,2527.0,5.200419]
[1725283087859,3.95564,2528.1,2527.2,2.3629]
[1725283088152,7.91156,2528.0,2527.5,2.4779]
[1725283088307,3.95601,2527.8,2527.5,5.4779]
[1725283088505,3.95601,2527.8,2527.6,0.55]
[1725283088725,3.95601,2527.8,2527.6,3.55]
[1725283089642,3.95601,2527.8,2527.6,7.55]
[1725283090560,7.91212,2527.8,2527.6,7.55]
[1725283090725,3.95601,2527.8,2527.6,7.55]
[1725283090925,3.95601,2527.8,2527.6,8.61913056]
[1725283091117,3.95616,2527.7,2527.6,8.61913056]
[1725283091323,3.95616,2527.7,2527.6,4.61913056]
[1725283094191,7.91232,2527.7,2527.6,4.61913056]
[1725283096188,7.91232,2527.7,2527.6,8.61913056]
[1725283100280,3.95616,2527.7,2527.6,8.61913056]
[1725283105402,3.95616,2527.7,2527.6,7.55]
[1725283106812,3.95616,2527.7,2527.6,3.55]
[1725283107315,3.95601,2527.8,2527.6,3.55]
[1725283107517,7.91212,2527.8,2527.6,3.55]
[1725283107671,3.95601,2527.8,2527.6,4.16070228]
[1725283109922,3.95601,2527.8,2527.6,8.16070228]
[1725283110997,3.95601,2527.8,2527.6,8.57714651]
[1725283111965,3.95578,2528.0,2527.7,0.41644423]
[1725283112193,3.95578,2528.0,2527.8,4.48838388]
[1725283112394,3.95578,2528.0,2527.9,3.0]
[1725283112608,3.95578,2528.0,2527.9,3.96644423]
[1725283112918,3.95578,2528.0,2527.9,0.55]
[1725283113410,3.95578,2528.0,2527.9,0.96644423]
[1725283113707,3.95578,2528.0,2527.9,4.96644423]
[1725283114009,3.95578,2528.0,2527.9,4.71235554]
[1725283114806,3.95578,2528.0,2527.9,1.71235554]
[1725283114967,3.95578,2528.0,2527.9,0.96644423]
[1725283116508,3.95578,2528.0,2527.9,1.61487423]
[1725283116710,3.95578,2528.0,2527.9,0.96644423]
[1725283116873,3.95578,2528.0,2527.9,5.61487423]
[1725283117070,3.95578,2528.0,2527.9,7.96644423]
[1725283117269,3.95578,2528.0,2527.9,8.61472098]
[1725283117794,3.95578,2528.0,2527.9,7.55]
[1725283118029,3.95578,2528.0,2527.9,8.61464682]
[1725283118673,3.95578,2528.0,2527.9,8.61467683]
[1725283120613,3.95578,2528.0,2527.9,7.55]
[1725283120821,3.95578,2528.0,2527.9,8.61462309]
[1725283121134,14.42368442,2528.0,2527.9,4.06462309]
[1725283121275,6.43766,2527.7,2527.6,3.0]
[1725283121629,14.34998,2527.7,2527.6,3.41658632]
[1725283121971,12.7711025,2527.7,2527.5,27.2]
[1725283122218,11.86896,2527.6,2527.5,27.2]
[1725283122401,11.86896,2527.6,2527.5,27.61665717]
[1725283122775,11.86896,2527.6,2527.5,0.41665717]
[1725283123135,7.91264,2527.6,2527.5,0.41665717]
[1725283123569,3.95694,2527.2,2527.1,3.0]
[1725283123819,3.95694,2527.2,2527.1,1.61547552]
[1725283124018,3.95694,2527.2,2527.1,8.63041108]
[1725283124969,3.9568,2527.3,2527.2,2.3161]
[1725283125132,3.9568,2527.3,2527.2,6.93157552]
[1725283126665,3.9559,2527.9,2527.3,2.3161]
[1725283126666,3.95585,2527.9,2527.3,2.3161]
[1725283126876,3.95585,2527.9,2527.4,0.62912351]
[1725283127082,3.95585,2527.9,2527.5,1.06502805]
[1725283127365,3.95585,2527.9,2527.6,0.9665183]
[1725283127571,3.956,2527.8,2527.7,0.4165183]
[1725283127983,3.95585,2527.9,2527.7,0.9665183]
[1725283128132,3.95561,2528.1,2527.8,0.9665183]
[1725283128332,3.95561,2528.1,2527.9,1.28153086]
[1725283128536,3.9554,2528.2,2528.0,0.9665183]
[1725283128768,3.9554,2528.2,2528.1,0.4165183]
[1725283128929,3.9554,2528.2,2528.1,0.9665183]
[1725283132287,7.9108,2528.2,2528.1,0.9665183]
[1725283133157,7.9108,2528.2,2528.1,0.55]
[1725283133354,7.9108,2528.2,2527.8,0.64850975]
[1725283133355,3.95579,2528.0,2527.9,0.55]
[1725283133674,7.91158,2528.0,2527.9,0.96634492]
[1725283133981,7.91158,2528.0,2527.9,3.96634492]
[1725283135465,7.91158,2528.0,2527.9,0.96634492]
[1725283136456,7.91158,2528.0,2527.9,0.55]
[1725283136665,3.95585,2527.9,2527.8,0.55]
[1725283136866,7.9117,2527.9,2527.8,0.55]
[1725283138392,7.9117,2527.9,2527.8,1.45837938]
[1725283138591,7.9117,2527.9,2527.8,4.45837938]
[1725283138754,7.9117,2527.9,2527.8,3.55]
[1725283138955,7.9117,2527.9,2527.8,0.55]
[1725283141404,16.09611791,2527.9,2527.8,0.55]
[1725283141547,11.868,2527.8,2527.7,3.49572039]
[1725283141751,11.868,2527.8,2527.7,0.49572039]
[1725283142367,7.912,2527.8,2527.7,0.49572039]
[1725283142801,3.956,2527.8,2527.7,2.86092039]
[1725283143138,3.956,2527.8,2527.7,6.41092039]
[1725283143636,3.956,2527.8,2527.7,5.9152]
[1725283146104,3.956,2527.8,2527.7,6.68109197]
[1725283146832,7.91178,2527.9,2527.7,6.68109197]
[1725283147032,3.95585,2527.9,2527.8,3.55]
[1725283148305,3.9557,2528.0,2527.8,4.2181092]
[1725283151002,6.23446,2528.4,2527.8,4.2181092]
[1725283151003,7.91072,2528.3,2527.8,5.88270777]
[1725283151237,3.95534,2528.3,2527.8,5.88270777]
[1725283151445,3.95554,2528.1,2527.8,4.2181092]
[1725283151614,7.91123,2528.1,2527.8,4.2181092]
[1725283151825,3.95585,2527.9,2527.8,3.55]
[1725283152158,7.9117,2527.9,2527.8,3.55]
[1725283152452,7.9117,2527.9,2527.8,0.55]
[1725283152658,3.95617,2527.7,2527.6,0.55]
[1725283153154,3.95617,2527.7,2527.6,3.55]
[1725283153309,3.95617,2527.7,2527.6,0.55]
[1725283153822,3.95617,2527.7,2527.5,0.55]
[1725283156453,3.95617,2527.7,2527.5,2.21459857]
[1725283156654,3.95632,2527.6,2527.5,2.21459857]
[1725283156817,3.95632,2527.6,2527.5,0.55]
[1725283158923,3.95649,2527.5,2527.4,2.21459857]
[1725283159128,3.95649,2527.5,2527.4,3.55]
[1725283159430,3.95649,2527.5,2527.4,0.55]
[1725283160864,3.95665,2527.4,2527.3,0.55]
[1725283164871,3.95665,2527.4,2527.2,5.45897592]
[1725283164872,2.314,2527.7,2527.2,1.66459857]
[1725283165093,8.18569431,2527.8,2527.0,27.2]
[1725283165094,3.95694,2527.2,2527.0,27.2]
[1725283165229,7.91399,2527.2,2527.0,27.2]
[1725283165862,3.95712,2527.1,2526.9,1.66459857]
[1725283166131,3.95712,2527.1,2526.7,24.3585326]
[1725283166132,3.95712,2527.1,2526.8,1.66459857]
[1725283166334,3.95712,2527.1,2526.9,0.55]
[1725283166533,3.95712,2527.1,2526.8,0.55]
[1725283166743,3.95712,2527.1,2526.8,4.34980667]
[1725283167268,3.95712,2527.1,2526.9,3.0]
[1725283167569,3.95712,2527.1,2527.0,0.55]
[1725283171878,7.91431,2527.1,2527.0,0.55]
[1725283172344,3.95738,2527.0,2526.9,0.55]
[1725283175094,7.91476,2527.0,2526.9,0.55]
[1725283176983,3.95751,2526.9,2526.7,0.55]
[1725283177289,3.95757,2526.8,2526.7,0.55]
[1725283178263,7.91514,2526.8,2526.7,0.55]
[1725283178594,10.30944,2526.8,2526.7,0.55]
[1725283178984,7.91546,2526.7,2526.6,0.55]
[1725283181398,3.95765,2526.8,2526.5,0.55]
[1725283181602,7.91576,2526.6,2526.5,0.55]
[1725283184465,11.87364,2526.6,2526.5,0.55]
[1725283184666,12.45829265,2526.6,2526.5,0.55]
[1725283184901,11.8746,2526.4,2526.3,3.0]
[1725283185306,7.91764,2526.0,2525.9,7.41]
[1725283186619,7.91764,2526.0,2525.9,10.41]
[1725283187476,7.91764,2526.0,2525.9,10.96]
[1725283190299,11.87646,2526.0,2525.9,10.96]
[1725283191112,11.87742,2525.8,2525.7,1.99896]
[1725283191322,7.92016,2525.2,2525.1,2.316]
[1725283192416,11.88024,2525.2,2525.1,2.316]
[1725283192631,3.96055,2524.9,2524.8,0.0905305]
[1725283192776,11.88165,2524.9,2524.8,0.0905305]
[1725283193577,7.92172,2524.7,2524.6,1.99896]
[1725283194833,15.84344,2524.7,2524.6,1.99896]
[1725283195132,15.84344,2524.7,2523.7,12.35]
[1725283195133,7.92454,2523.8,2523.7,2.4173]
[1725283196981,7.92486,2523.7,2523.6,1.99896]
[1725283197183,11.88729,2523.7,2523.6,1.99896]
[1725283197434,7.9258,2523.4,2523.3,7.41]
[1725283197612,11.8887,2523.4,2523.3,7.41]
[1725283197812,7.9258,2523.4,2523.3,7.41]
[1725283198743,7.9258,2523.4,2523.3,10.41]
[1725283200223,11.8887,2523.4,2523.3,3.0]
[1725283200438,11.8887,2523.4,2522.9,1.99896]
[1725283200439,3.96353,2523.0,2522.9,1.99896]
[1725283200757,7.92706,2523.0,2522.9,1.99896]
[1725283202862,7.92706,2523.0,2522.9,2.54896]
[1725283203072,7.92706,2523.0,2522.9,5.54896]
[1725283203628,7.92706,2523.0,2522.9,1.99896]
[1725283203629,11.89059,2523.0,2522.9,1.99896]
[1725283203830,16.46476208,2523.0,2522.9,1.99896]
[1725283204071,7.92832,2522.6,2522.5,7.41]
[1725283204459,3.96416,2522.6,2522.3,19.79]
[1725283204780,7.92894,2522.4,2522.3,19.79]
[1725283204923,7.92926,2522.3,2522.2,2.4499]
[1725283206343,3.96494,2522.1,2522.0,3.0]
[1725283206543,7.92988,2522.1,2522.0,7.01493556]
[1725283206858,7.92988,2522.1,2522.0,7.56493556]
[1725283207570,3.96542,2521.8,2521.7,1.99896]
[1725283207740,7.93084,2521.8,2521.7,1.99896]
[1725283208831,11.89626,2521.8,2521.7,1.99896]
[1725283209240,16.47232208,2521.8,2521.7,1.99896]
[1725283209442,16.47232208,2521.8,2520.9,0.06893529]
[1725283209443,7.93334,2521.0,2520.9,0.06893529]
[1725283209631,7.93398,2520.8,2520.7,2.2761]
[1725283212483,3.9674,2520.6,2520.4,4.64106147]
[1725283212647,3.96746,2520.5,2520.4,2.64106147]
[1725283212841,3.96746,2520.5,2520.4,3.38626875]
[1725283213446,3.96746,2520.5,2520.4,6.38626875]
[1725283213841,3.96746,2520.5,2520.4,3.1268626]
[1725283213842,7.93492,2520.5,2520.4,3.1268626]
[1725283214467,7.93492,2520.5,2520.4,0.1268626]
[1725283215686,7.93492,2520.5,2520.4,0.6768626]
[1725283216507,11.90238,2520.5,2520.4,0.6768626]
[1725283223122,15.86984,2520.5,2520.4,0.6768626]
[1725283223324,22.93948,2520.5,2520.4,0.1268626]
[1725283223527,27.17729207,2520.5,2520.4,0.1268626]
[1725283224566,27.17729207,2520.5,2520.4,2.6e-06]
[1725283225120,8.99785207,2520.5,2519.3,2.4728]
[1725283225323,7.93934,2519.1,2519.0,2.4728]
[1725283226466,7.93934,2519.1,2519.0,2.72008]
[1725283227767,7.93934,2519.1,2519.0,6.27008]
[1725283227972,7.93934,2519.1,2519.0,3.55]
[1725283229228,7.93934,2519.1,2519.0,3.0]
[1725283229457,7.94028,2518.8,2518.7,2.3803]
[1725283229658,7.94028,2518.8,2518.7,2.61833]
[1725283229874,7.94028,2518.8,2518.7,5.61833]
[1725283230527,7.94028,2518.8,2518.7,6.16833]
[1725283234534,7.94028,2518.8,2518.7,5.9303]
[1725283235370,7.94028,2518.8,2518.7,3.55]
[1725283236832,11.91042,2518.8,2518.7,3.55]
[1725283236989,11.91042,2518.8,2518.7,0.55]
[1725283237145,3.97014,2518.8,2518.5,0.55]
[1725283237341,3.97045,2518.6,2518.2,0.03]
[1725283237546,7.94186,2518.3,2518.2,0.03]
[1725283237770,3.97093,2518.3,2518.2,0.03]
[1725283237970,7.94186,2518.3,2518.2,0.03]
[1725283238342,3.97093,2518.3,2518.2,0.26875]
[1725283238547,3.97054,2518.6,2518.3,2.294]
[1725283238886,3.97054,2518.6,2518.5,2.294]
[1725283239095,3.97054,2518.6,2518.5,2.844]
[1725283239770,3.97054,2518.6,2518.5,5.844]
[1725283240444,3.9703,2518.7,2518.5,5.844]
[1725283240660,7.9406,2518.7,2518.6,3.55]
[1725283240863,11.9109,2518.7,2518.6,3.55]
[1725283241090,11.9109,2518.7,2518.2,2.4283]
[1725283241091,7.94154,2518.4,2518.3,3.0]
[1725283241599,3.97093,2518.3,2518.2,2.4283]
[1725283242160,7.94186,2518.3,2518.2,3.03]
[1725283242506,7.94186,2518.3,2518.2,3.58]
[1725283242665,7.94186,2518.3,2518.2,0.58]
[1725283243462,3.97093,2518.3,2518.2,0.58]
[1725283243862,7.94186,2518.3,2518.2,0.58]
[1725283244057,3.97093,2518.3,2518.2,0.58]
[1725283245016,7.94186,2518.3,2518.2,0.58]
[1725283247613,3.9708,2518.4,2518.2,0.58]
[1725283247614,2.4931,2519.1,2518.3,2.3906]
[1725283247815,3.97037,2518.7,2518.4,0.62940458]
[1725283248118,3.9705,2518.6,2518.4,0.55]
[1725283248305,3.9705,2518.6,2518.4,4.14706]
[1725283248483,3.97061,2518.5,2518.4,4.14706]
[1725283248670,3.97037,2518.7,2518.4,4.14706]
[1725283248874,3.97054,2518.6,2518.4,3.55]
[1725283249494,3.97054,2518.6,2518.5,2.3547]
[1725283249696,3.97022,2518.8,2518.5,5.9047]
[1725283249897,3.97038,2518.7,2518.5,5.3547]
[1725283250207,3.97038,2518.7,2518.6,0.55]
[1725283250706,3.97093,2518.3,2518.2,3.03]
[1725283250876,3.97093,2518.3,2518.2,0.03]
[1725283252018,7.94186,2518.3,2518.2,0.03]
[1725283252531,3.97093,2518.3,2518.2,0.03]
[1725283252670,3.97069,2518.5,2518.2,0.03]
[1725283252671,3.97067,2518.5,2518.2,0.03]
[1725283252870,3.97039,2518.7,2518.3,2.4735]
[1725283253173,3.97057,2518.6,2518.4,0.55]
[1725283253383,3.97061,2518.5,2518.4,0.55]
[1725283253618,3.97061,2518.5,2518.4,3.55]
[1725283255072,7.94122,2518.5,2518.4,3.55]
[1725283255303,7.94122,2518.5,2518.4,0.55]
[1725283255608,3.97093,2518.3,2518.2,3.03]
[1725283255808,3.97093,2518.3,2518.2,0.58]
[1725283256186,3.97093,2518.3,2518.2,0.03]
[1725283256389,7.94186,2518.3,2518.2,0.03]
[1725283257709,11.91279,2518.3,2518.2,0.03]
[1725283259016,14.19219,2518.3,2518.2,0.03]
[1725283260380,18.16312,2518.3,2518.2,0.03]
[1725283260675,14.19219,2518.3,2518.2,0.03]
[1725283261579,11.91279,2518.3,2518.2,0.03]
[1725283261907,7.94186,2518.3,2518.2,0.03]
[1725283262086,3.97016,2518.8,2518.3,2.4021]
[1725283262292,3.97016,2518.8,2518.4,0.87261592]
[1725283262601,3.96991,2519.0,2518.4,3.87261592]
[1725283262803,3.97011,2518.9,2518.4,3.87261592]
[1725283263125,3.97061,2518.5,2518.4,3.55]
[1725283263336,7.94122,2518.5,2518.4,3.55]
[1725283264001,7.94122,2518.5,2518.4,0.55]
[1725283264339,11.91183,2518.5,2518.4,3.0]
[1725283264634,7.94122,2518.5,2518.4,0.55]
[1725283265003,7.94154,2518.4,2518.3,0.55]
[1725283265242,11.91231,2518.4,2518.3,3.55]
[1725283265439,11.91231,2518.4,2518.3,0.55]
[1725283265588,7.94154,2518.4,2518.3,0.55]
[1725283266908,11.91279,2518.3,2518.2,0.03]
[1725283267097,7.94186,2518.3,2518.2,0.03]
[1725283268268,11.91279,2518.3,2518.2,0.03]
[1725283269518,7.94186,2518.3,2518.2,0.03]
[1725283269718,11.91279,2518.3,2518.2,0.03]
[1725283270052,7.94186,2518.3,2518.2,0.03]
[1725283271199,7.94186,2518.3,2518.2,0.58]
[1725283272500,11.91279,2518.3,2518.2,0.58]
[1725283272939,7.94186,2518.3,2518.2,0.58]
[1725283274212,11.91279,2518.3,2518.2,0.58]
[1725283274967,11.91279,2518.3,2518.2,0.03]
[1725283274968,15.88372,2518.3,2518.2,0.03]
[1725283276462,11.91279,2518.3,2518.2,0.03]
[1725283276872,15.88372,2518.3,2518.2,0.03]
[1725283277275,11.91279,2518.3,2518.2,0.03]
[1725283277646,15.88372,2518.3,2518.2,0.03]
[1725283278382,15.88372,2518.3,2517.8,0.1228986]
[1725283278383,2.2818,2518.2,2517.8,0.1228986]
[1725283278563,26.37741207,2517.9,2517.8,8.6e-06]
[1725283278877,11.91468,2517.9,2517.8,8.6e-06]
[1725283279226,7.94312,2517.9,2517.8,8.6e-06]
[1725283281069,11.91468,2517.9,2517.8,8.6e-06]
[1725283281523,7.94312,2517.9,2517.8,8.6e-06]
[1725283282765,11.91468,2517.9,2517.8,8.6e-06]
[1725283283073,16.15249207,2517.9,2517.8,8.6e-06]
[1725283283636,11.91468,2517.9,2517.8,8.6e-06]
[1725283285359,20.12405207,2517.9,2517.8,8.6e-06]
[1725283285947,20.12194402,2517.9,2517.8,8.6e-06]
[1725283286463,16.15038402,2517.9,2517.8,8.6e-06]
[1725283287000,22.47424402,2517.9,2517.8,8.6e-06]
[1725283287688,18.50268402,2517.9,2517.8,8.6e-06]
[1725283288097,7.94101195,2517.9,2517.8,8.6e-06]
[1725283289289,3.96945195,2517.9,2517.8,8.6e-06]
[1725283289665,7.94101195,2517.9,2517.8,8.6e-06]
[1725283289856,3.96945195,2517.9,2517.8,8.6e-06]
[1725283290052,3.97141,2518.0,2517.8,8.6e-06]
[1725283290259,3.97135,2518.1,2517.8,8.6e-06]
[1725283290459,3.97156,2517.9,2517.8,8.6e-06]
[1725283291098,7.94312,2517.9,2517.8,8.6e-06]
[1725283291778,3.97156,2517.9,2517.8,8.6e-06]
[1725283292161,3.9714,2518.0,2517.8,8.6e-06]
[1725283292357,3.97119,2518.2,2517.8,8.6e-06]
[1725283292698,3.9714,2518.0,2517.9,2.297]
[1725283292880,3.97127,2518.1,2517.9,3.08464342]
[1725283293085,7.94251,2518.1,2518.0,3.0]
[1725283293498,3.97156,2517.9,2517.8,8.6e-06]
[1725283294598,3.97142,2518.0,2517.8,8.6e-06]
[1725283294799,7.94293,2518.0,2517.8,8.6e-06]
[1725283295055,3.97067,2518.5,2517.8,8.6e-06]
[1725283295056,7.94188,2518.3,2517.8,8.6e-06]
[1725283295199,7.94312,2517.9,2517.8,8.6e-06]
[1725283295844,2.3769,2518.5,2517.8,8.6e-06]
[1725283295845,3.97054,2518.6,2517.8,2.2970086]
[1725283296006,3.9714,2518.0,2517.9,0.22970086]